Workbook

Sheet Sheet1
A1: HEALTHPRIME CONNECT
A2: Benefit Illustration in respect of policies offered on individual and family floater basis
A3: Plan | B3: Essential | C3: Sum Insured | D3: 2500000 | E3: Policy Tenure | F3: 2 years
A4: Otional Covers
A5: Cumulative Bonus Enhancer | B5: NA | C5: OPD Cover | D5: NA | E5: Critical Illness & Personal Accident | F5: NA | G5: WorldWide Coverage | H5: NA
A6: 1st Adult Age | B6: 65 | C6: 2nd Adult Age | D6: 55 | E6: 1st Child Age | F6: 25 | G6: 2nd Child Age | H6: 20
A7: 3rd Child Age | B7: 3-11 Months | C7: =IF(OR(F5="No",F5="NA",F5="Please Select"),"",IF(OR(B3="OptimumPlus",B3="Essential"),"",IF(AND(B3="Optimum",D3<=2000000,OR(F5="CI: 2Lakhs & PA: 100% CSI",F5="CI: 2Lakhs & PA: 150% CSI")),"",IF(AND(B3="Optimum",D3>=2500000,OR(F5="CI: 5Lakhs & PA: 100% CSI",F5="CI: 5Lakhs & PA: 150% CSI")),"","Kindly select correct Critical Illness & Personal Accident option from dropdown")))) ->  | I7: UIN: LIBHLIP21505V022021
A9: Age of the members insured | B9: Coverage opted on individual basis covering each member of the family separately (at a single point in time) | D9: Coverage opted on individual basis covering multiple members of the family under a single policy (Sum insured is available for each member of the family) | H9: Coverage opted on family floater basis with overall Sum insured (Only one sum insured is available for the entire family)
B10: Premium (Rs.) | C10: Sum insured (Rs.) | D10: Premium (Rs.) | E10: Discount, (if any) | F10: Premium after discount (Rs.) | G10: Sum insured (Rs.) | H10: Premium or consolidated premium for all members of family (Rs.) | I10: Floater discount, if any | J10: Premium after discount (Rs.) | K10: Sum insured
A11: =B6 -> 65 | B11: =Master!AJ4 -> 99026 | C11: =IF(B6="",0,$D$3) -> 2500000 | D11: =Master!AJ4 -> 99026 | E11: =IF(AND(COUNT(Master!W4:W8)>2,Sheet1!F3="1 year"),"Family Discount: 10%",IF(AND(COUNT(Master!W4:W8)>2,Sheet1!F3="2 years"),"Family Discount: 10% & Long Term Discount: 7.5%",IF(AND(COUNT(Master!W4:W8)<=2,Sheet1!F3="2 years"),"Long Term Discount: 7.5%",0%))) -> Family Discount: 10% & Long Term Discount: 7.5% | F11: =Master!AL4 -> 81696.45 | G11: =IF(B6="",0,$D$3) -> 2500000 | H11: =IF(Master!$V$4="Available floater combinations - 1A1C, 1A2C, 1A3C, 2A, 2A1C, 2A2C or 2A3C","Available floater combinations - 1A1C, 1A2C, 1A3C, 2A, 2A1C, 2A2C or 2A3C","Base Plan Rs."&" "&ROUND(Master!AO4,0)&" "&"Optional Cover Rs."&ROUND(Master!AO5,0)) -> Base Plan Rs. 183511 Optional Cover Rs.0 | I11: =IF(Master!$V$4="Available floater combinations - 1A1C, 1A2C, 1A3C, 2A, 2A1C, 2A2C or 2A3C",0%,Master!AG23) -> 0.4 | J11: =IF(Master!$V$4="Available floater combinations - 1A1C, 1A2C, 1A3C, 2A, 2A1C, 2A2C or 2A3C",0,Master!AQ4) -> 110106 | K11: =IF(Master!$V$4="Available floater combinations - 1A1C, 1A2C, 1A3C, 2A, 2A1C, 2A2C or 2A3C",0,Sheet1!D3) -> 2500000
A12: =D6 -> 55 | B12: =Master!AJ5 -> 58072 | C12: =IF(D6="",0,$D$3) -> 2500000 | D12: =Master!AJ5 -> 58072 | F12: =Master!AL5 -> 47909.4 | G12: =IF(D6="",0,$D$3) -> 2500000
A13: =F6 -> 25 | B13: =Master!AJ6 -> 13764 | C13: =IF(F6="",0,$D$3) -> 2500000 | D13: =Master!AJ6 -> 13764 | F13: =Master!AL6 -> 11355.3 | G13: =IF(F6="",0,$D$3) -> 2500000
A14: =H6 -> 20 | B14: =Master!AJ7 -> 13764 | C14: =IF(H6="",0,$D$3) -> 2500000 | D14: =Master!AJ7 -> 13764 | F14: =Master!AL7 -> 11355.3 | G14: =IF(H6="",0,$D$3) -> 2500000
A15: =B7 -> 3-11 Months | B15: =Master!AJ8 -> 13764 | C15: =IF(B7="",0,$D$3) -> 2500000 | D15: =Master!AJ8 -> 13764 | F15: =Master!AL8 -> 11355.3 | G15: =IF(B7="",0,$D$3) -> 2500000
A16: =Master!AN7 -> Total Premium for all members of the family is, Rs. 183511 (excluding GST) when each member is covered separately. | D16: =Master!AO7 -> Total Premium for all members of the family is, Rs. 163672 (excluding GST) when they are covered under a single policy | H16: =Master!AP7 -> Total Premium when policy is opted on floater basis is, Rs. 110106 (excluding GST)
A17: =IF(F3="2 years","*Total premium shown above includes long term discount","") -> *Total premium shown above includes long term discount | H17: =IF(Master!$V$4="Available floater combinations - 1A1C, 1A2C, 1A3C, 2A, 2A1C, 2A2C or 2A3C","",IF($F$3="1 year","*Floater discount applies only to Base Plan premium","*Floater discount applies only to Base Plan premium & consolidated premium shown above includes long term discount")) -> *Floater discount applies only to Base Plan premium & consolidated premium shown above includes long term discount
A18: =Master!AN8 -> Sum insured available for each individual is Rs. 2500000 | D18: =Master!AO8 -> Sum insured available for each family member is Rs. 2500000 | H18: =Master!AP8 -> Sum insured of Rs. 2500000 is available for the entire family.

Sheet Drop down lists (hidden)
A1: Plan | B1: Sum Insured | C1: Optimum upto 20L | D1: Optimum Above 20L | E1: OptimumPlus | F1: OPDLimit | G1: CBE & Worlwide | H1: Essential Optional Cover | I1: No. of Insured | J1: No. of Children | K1: Ind Relationship | L1: Family Relationship | O1: Occupation | P1: Loading | Q1: Loading | R1: Gender | S1: Nominee Relationship | T1: Policy Tenure | U1: Age
A2: Essential | B2: 1000000 | C2: No | D2: No | E2: No | F2: No | G2: Yes | H2: NA | I2: 1 | J2: 0 | O2: Salaried | P2: 0 | Q2: NA | R2: Male | S2: Self | T2: 1 year | U2: 3-11 Months
A3: Optimum | B3: 1500000 | C3: CI: 2Lakhs & PA: 100% CSI | D3: CI: 5Lakhs & PA: 100% CSI | E3: CI: 5Lakhs & PA: 100% CSI | F3: 10000 | G3: No | I3: 2 | J3: 1 | K3: Self | L3: Self | N3: Self | O3: Housewife | P3: 0.05 | R3: Female | S3: Spouse | T3: 2 years | U3: 1
A4: OptimumPlus | B4: 2000000 | C4: CI: 2Lakhs & PA: 150% CSI | D4: CI: 5Lakhs & PA: 150% CSI | E4: CI: 5Lakhs & PA: 150% CSI | F4: 15000 | I4: 3 | J4: 2 | K4: Spouse | L4: Spouse | N4: Spouse | O4: Student | P4: 0.1 | S4: Mother | U4: 2
B5: 2500000 | E5: CI: 10Lakhs & PA: 100% CSI | F5: 20000 | I5: 4 | J5: 3 | K5: Son | L5: Son | N5: Mother | O5: Retired | P5: 0.15 | S5: Father | U5: 3
B6: 3000000 | E6: CI: 10Lakhs & PA: 150% CSI | F6: 30000 | I6: 5 | J6: 4 | K6: Daughter | L6: Daughter | N6: Father | O6: Others | P6: 0.2 | S6: Others | U6: 4
B7: 5000000 | K7: Mother | L7: Mother | N7: Brother | P7: 0.25 | U7: 5
B8: 7500000 | K8: Father | L8: Father | N8: Sister | P8: 0.3 | U8: 6
B9: 10000000 | K9: Brother | L9: Mother-in-Law | N9: Mother-in-Law | P9: 0.35 | U9: 7
K10: Sister | L10: Father-in-law | N10: Father-in-law | P10: 0.4 | U10: 8
K11: Mother-in-Law | N11: Son-in-law | P11: 0.45 | U11: 9
K12: Father-in-law | N12: Daughter-in-law | P12: 0.5 | U12: 10
K13: Son-in-law | N13: Grand-Mother | P13: 0.6 | U13: 11
K14: Daughter-in-law | N14: Grand-Father | P14: 0.7 | U14: 12
K15: Grand-Son | P15: 0.8 | U15: 13
K16: Grand-Daughter | P16: 0.9 | U16: 14
K17: Grand-Mother | P17: 1 | U17: 15
K18: Grand-Father | U18: 16
U19: 17
U20: 18
U21: 19
U22: 20
U23: 21
U24: 22
U25: 23
U26: 24
U27: 25
U28: 26
U29: 27
U30: 28
U31: 29
U32: 30
U33: 31
U34: 32
U35: 33
U36: 34
U37: 35
U38: 36
U39: 37
U40: 38
U41: 39
U42: 40
U43: 41
U44: 42
U45: 43
U46: 44
U47: 45
U48: 46
U49: 47
U50: 48
U51: 49
U52: 50
U53: 51
U54: 52
U55: 53
U56: 54
U57: 55
U58: 56
U59: 57
U60: 58
U61: 59
U62: 60
U63: 61
U64: 62
U65: 63
U66: 64
U67: 65

Sheet Master (hidden)
A2: Essential | V2: Working
A3: Age Band | B3: 91 days - 25 years | C3: 26 years - 35 years | D3: 36 years - 40 years | E3: 41 years - 45 years | F3: 46 years - 50 years | G3: 51 years - 55 years | H3: 56 years - 60 years | I3: 61 years - 65 years | J3: 66 years - 70 years | K3: 71 years - 75 years | L3: 76 years - 100 years | P3: Age Band | R3: =AB3 -> Base Premium | V3: Floater Combination | W3: Insured Name | X3: Age | Y3: Age band | Z3: Sum insured | AA3: Match | AB3: Base Premium | AC3: Maternity Age Band | AD3: Maternity Cover | AE3: Family Floater Discount | AF3: Critical Illness & Personal Accident Cover | AG3: OPD Cover | AH3: Cumultive Bonus Enhancer | AI3: Worldwide Coverage | AJ3: Total | AK3: Ind prm with long term discount | AL3: Ind prm with family+Long term discount | AN3: Floater premium | AO3: Floater premium with long term discount | AP3: Prm with Floater Discount | AQ3: Final Floater Premium
A4: 1000000 | B4: 5191 | C4: 7323 | D4: 9624 | E4: 12724 | F4: 16218 | G4: 21090 | H4: 26362 | I4: 34286 | J4: 47876 | K4: 60409 | L4: 82086 | N4: 0.25 | O4: 25 | P4: 91 days - 25 years | R4: 1 year | S4: 2 years | T4: 3 years | V4: =IF(AND(SUM($W$4:$W$5)=1,SUM($W$6:$W$8)=1),"1A1C",IF(AND(SUM($W$4:$W$5)=1,SUM($W$6:$W$8)=2),"1A2C",IF(AND(SUM($W$4:$W$5)=1,SUM($W$6:$W$8)=3),"1A3C",IF(AND(SUM($W$4:$W$5)=2,SUM($W$6:$W$8)=0),"2A",IF(AND(SUM($W$4:$W$5)=2,SUM($W$6:$W$8)=1),"2A1C",IF(AND(SUM($W$4:$W$5)=2,SUM($W$6:$W$8)=2),"2A2C",IF(AND(SUM($W$4:$W$5)=2,SUM($W$6:$W$8)=3),"2A3C","Available floater combinations - 1A1C, 1A2C, 1A3C, 2A, 2A1C, 2A2C or 2A3C"))))))) -> 2A3C | W4: =IF(X4="","",1) -> 1 | X4: =IF(Sheet1!B6="","",Sheet1!B6) -> 65 | Y4: =IFERROR(LOOKUP(X4,Master!$N$4:$P$14),0) -> 61 years - 65 years | Z4: =IF(X4="","",Sheet1!$D$3) -> 2500000 | AA4: =IF(X4="","",Sheet1!$B$3&Sheet1!$D$3) -> Essential2500000 | AB4: =IFERROR(IF(Sheet1!$F$3=Master!$R$4,Master!R5,(IF(Sheet1!$F$3=Master!$S$4,Master!S5,(IF(Sheet1!$F$3=Master!$T$4,Master!T5,0))))),0) -> 99026 | AC4: =IFERROR(LOOKUP(X4,Master!$N$17:$P$28),0) -> 61 years - 65 years | AD4: =IFERROR(IF(OR(Sheet1!$B$3="Essential",Master!$V$4="Available floater combinations - 1A1C, 1A2C, 1A3C, 2A, 2A1C, 2A2C or 2A3C"),0,IF(Sheet1!$F$3="1 year",Master!M31,Master!N31)),0) -> 0 | AF4: =IFERROR(IF(OR(Sheet1!$F$5="No",Sheet1!$F$5="NA",Sheet1!$F$5="Please Select"),0,IF(Sheet1!$F$3="1 year",INDEX($M$52:$X$58,MATCH(Sheet1!$F$5,Master!$M$52:$M$58,0),MATCH(Master!Y4,Master!$M$52:$X$52,0)),INDEX($M$60:$X$66,MATCH(Sheet1!$F$5,Master!$M$60:$M$66,0),MATCH(Master!Y4,Master!$M$60:$X$60,0)))),0) -> 0 | AG4: =IFERROR(IF(OR(Sheet1!$D$5="No",Sheet1!$D$5="NA",Sheet1!$D$5="Please Select"),0,IF(Sheet1!$F$3="1 year",Master!M102,IF(Sheet1!$F$3="2 years",Master!N102,0))),0) -> 0 | AH4: =IFERROR(IF(Sheet1!$B$5="Yes",AK23,0),0) -> 0 | AI4: =IFERROR(IF(OR(Sheet1!$H$5="No",Sheet1!$H$5="NA",Sheet1!$H$5="Please Select"),0,IF(Sheet1!$F$3="1 year",Master!Z88,Master!AA88)),0) -> 0 | AJ4: =AB4+AF4+AG4+AH4+AI4 -> 99026 | AK4: =IF(Sheet1!$F$3="2 years",Master!AJ4*92.5%,Master!AJ4) -> 91599.05 | AL4: =IF(AND(COUNT($W$4:$W$8)>2,Sheet1!$F$3="2 years"),Master!AJ4*82.5%,IF(AND(COUNT($W$4:$W$8)>2,Sheet1!$F$3="1 year"),Master!AJ4*90%,IF(AND(COUNT($W$4:$W$8)<=2,Sheet1!$F$3="2 years"),Master!AJ4*92.5%,Master!AJ4))) -> 81696.45 | AM4: Base Premium | AN4: =AB10+AD10 -> 198390 | AO4: =IF(Sheet1!$F$3="2 years",Master!AN4*92.5%,Master!AN4) -> 183510.75 | AP4: =AO4*(100%-AG23) -> 110106.45 | AQ4: =IF($V$4="Available floater combinations - 1A1C, 1A2C, 1A3C, 2A, 2A1C, 2A2C or 2A3C",0,ROUND(SUM(AP4:AP5),0)) -> 110106
A5: 1500000 | B5: 5945 | C5: 8531 | D5: 11194 | E5: 14784 | F5: 18844 | G5: 24481 | H5: 30961 | I5: 40735 | J5: 57939 | K5: 74888 | L5: 102508 | N5: 26 | O5: 35 | P5: 26 years - 35 years | R5: =IFERROR(INDEX($M$36:$X$50,MATCH(AA4,$M$36:$M$50,0),MATCH(Y4,$M$36:$X$36,0)),0) -> 49513 | S5: =R5*$S$12 -> 99026 | T5: =R5*$T$12 -> 148539 | W5: =IF(X5="","",1) -> 1 | X5: =IF(Sheet1!D6="","",Sheet1!D6) -> 55 | Y5: =IFERROR(LOOKUP(X5,Master!$N$4:$P$14),0) -> 51 years - 55 years | Z5: =IF(X5="","",Sheet1!$D$3) -> 2500000 | AA5: =IF(X5="","",Sheet1!$B$3&Sheet1!$D$3) -> Essential2500000 | AB5: =IFERROR(IF(Sheet1!$F$3=Master!$R$4,Master!R6,(IF(Sheet1!$F$3=Master!$S$4,Master!S6,(IF(Sheet1!$F$3=Master!$T$4,Master!T6,0))))),0) -> 58072 | AC5: =IFERROR(LOOKUP(X5,Master!$N$17:$P$28),0) -> 51 years - 55 years | AD5: =IFERROR(IF(OR(Sheet1!$B$3="Essential",Master!$V$4="Available floater combinations - 1A1C, 1A2C, 1A3C, 2A, 2A1C, 2A2C or 2A3C"),0,IF(Sheet1!$F$3="1 year",Master!M32,Master!N32)),0) -> 0 | AF5: =IFERROR(IF(OR(Sheet1!$F$5="No",Sheet1!$F$5="NA",Sheet1!$F$5="Please Select"),0,IF(Sheet1!$F$3="1 year",INDEX($M$52:$X$58,MATCH(Sheet1!$F$5,Master!$M$52:$M$58,0),MATCH(Master!Y5,Master!$M$52:$X$52,0)),INDEX($M$60:$X$66,MATCH(Sheet1!$F$5,Master!$M$60:$M$66,0),MATCH(Master!Y5,Master!$M$60:$X$60,0)))),0) -> 0 | AG5: =IFERROR(IF(OR(Sheet1!$D$5="No",Sheet1!$D$5="NA",Sheet1!$D$5="Please Select"),0,IF(Sheet1!$F$3="1 year",Master!M103,IF(Sheet1!$F$3="2 years",Master!N103,0))),0) -> 0 | AH5: =IFERROR(IF(Sheet1!$B$5="Yes",AK24,0),0) -> 0 | AI5: =IFERROR(IF(OR(Sheet1!$H$5="No",Sheet1!$H$5="NA",Sheet1!$H$5="Please Select"),0,IF(Sheet1!$F$3="1 year",Master!Z89,Master!AA89)),0) -> 0 | AJ5: =AB5+AF5+AG5+AH5+AI5 -> 58072 | AK5: =IF(Sheet1!$F$3="2 years",Master!AJ5*92.5%,Master!AJ5) -> 53716.6 | AL5: =IF(AND(COUNT($W$4:$W$8)>2,Sheet1!$F$3="2 years"),Master!AJ5*82.5%,IF(AND(COUNT($W$4:$W$8)>2,Sheet1!$F$3="1 year"),Master!AJ5*90%,IF(AND(COUNT($W$4:$W$8)<=2,Sheet1!$F$3="2 years"),Master!AJ5*92.5%,Master!AJ5))) -> 47909.4 | AM5: Optional Cover | AN5: =AG11 -> 0 | AO5: =IF(Sheet1!$F$3="2 years",Master!AN5*92.5%,Master!AN5) -> 0 | AP5: =AO5 -> 0
A6: 2000000 | B6: 6405 | C6: 9294 | D6: 12205 | E6: 16110 | F6: 20533 | G6: 26719 | H6: 33996 | I6: 44991 | J6: 64837 | K6: 84754 | L6: 116667 | N6: 36 | O6: 40 | P6: 36 years - 40 years | R6: =IFERROR(INDEX($M$36:$X$50,MATCH(AA5,$M$36:$M$50,0),MATCH(Y5,$M$36:$X$36,0)),0) -> 29036 | S6: =R6*$S$12 -> 58072 | T6: =R6*$T$12 -> 87108 | W6: 1 | X6: =IF(Sheet1!F6="","",IF(Sheet1!F6="3-11 Months",0.25,Sheet1!F6)) -> 25 | Y6: =IFERROR(LOOKUP(X6,Master!$N$4:$P$14),0) -> 91 days - 25 years | Z6: =IF(X6="","",Sheet1!$D$3) -> 2500000 | AA6: =IF(X6="","",Sheet1!$B$3&Sheet1!$D$3) -> Essential2500000 | AB6: =IFERROR(IF(Sheet1!$F$3=Master!$R$4,Master!R7,(IF(Sheet1!$F$3=Master!$S$4,Master!S7,(IF(Sheet1!$F$3=Master!$T$4,Master!T7,0))))),0) -> 13764 | AC6: =IFERROR(LOOKUP(X6,Master!$N$17:$P$28),0) -> 18 years - 25 years | AD6: =IFERROR(IF(OR(Sheet1!$B$3="Essential",Master!$V$4="Available floater combinations - 1A1C, 1A2C, 1A3C, 2A, 2A1C, 2A2C or 2A3C"),0,IF(Sheet1!$F$3="1 year",Master!M33,Master!N33)),0) -> 0 | AF6: =IFERROR(IF(OR(Sheet1!$F$5="No",Sheet1!$F$5="NA",Sheet1!$F$5="Please Select"),0,IF(Sheet1!$F$3="1 year",INDEX($M$52:$X$58,MATCH(Sheet1!$F$5,Master!$M$52:$M$58,0),MATCH(Master!Y6,Master!$M$52:$X$52,0)),INDEX($M$60:$X$66,MATCH(Sheet1!$F$5,Master!$M$60:$M$66,0),MATCH(Master!Y6,Master!$M$60:$X$60,0)))),0) -> 0 | AG6: =IFERROR(IF(OR(Sheet1!$D$5="No",Sheet1!$D$5="NA",Sheet1!$D$5="Please Select"),0,IF(Sheet1!$F$3="1 year",Master!M104,IF(Sheet1!$F$3="2 years",Master!N104,0))),0) -> 0 | AH6: =IFERROR(IF(Sheet1!$B$5="Yes",AK25,0),0) -> 0 | AI6: =IFERROR(IF(OR(Sheet1!$H$5="No",Sheet1!$H$5="NA",Sheet1!$H$5="Please Select"),0,IF(Sheet1!$F$3="1 year",Master!Z90,Master!AA90)),0) -> 0 | AJ6: 13764 | AK6: =IF(Sheet1!$F$3="2 years",Master!AJ6*92.5%,Master!AJ6) -> 12731.7 | AL6: =IF(AND(COUNT($W$4:$W$8)>2,Sheet1!$F$3="2 years"),Master!AJ6*82.5%,IF(AND(COUNT($W$4:$W$8)>2,Sheet1!$F$3="1 year"),Master!AJ6*90%,IF(AND(COUNT($W$4:$W$8)<=2,Sheet1!$F$3="2 years"),Master!AJ6*92.5%,Master!AJ6))) -> 11355.3
A7: 2500000 | B7: 6882 | C7: 10085 | D7: 13250 | E7: 17482 | F7: 22281 | G7: 29036 | H7: 37134 | I7: 49513 | J7: 72130 | K7: 95145 | L7: 131559 | N7: 41 | O7: 45 | P7: 41 years - 45 years | R7: =IFERROR(INDEX($M$36:$X$50,MATCH(AA6,$M$36:$M$50,0),MATCH(Y6,$M$36:$X$36,0)),0) -> 6882 | S7: 13764 | T7: 20646 | W7: 1 | X7: =IF(Sheet1!H6="","",IF(Sheet1!H6="3-11 Months",0.25,Sheet1!H6)) -> 20 | Y7: =IFERROR(LOOKUP(X7,Master!$N$4:$P$14),0) -> 91 days - 25 years | Z7: =IF(X7="","",Sheet1!$D$3) -> 2500000 | AA7: =IF(X7="","",Sheet1!$B$3&Sheet1!$D$3) -> Essential2500000 | AB7: =IFERROR(IF(Sheet1!$F$3=Master!$R$4,Master!R8,(IF(Sheet1!$F$3=Master!$S$4,Master!S8,(IF(Sheet1!$F$3=Master!$T$4,Master!T8,0))))),0) -> 13764 | AC7: =IFERROR(LOOKUP(X7,Master!$N$17:$P$28),0) -> 18 years - 25 years | AD7: =IFERROR(IF(OR(Sheet1!$B$3="Essential",Master!$V$4="Available floater combinations - 1A1C, 1A2C, 1A3C, 2A, 2A1C, 2A2C or 2A3C"),0,IF(Sheet1!$F$3="1 year",Master!M34,Master!N34)),0) -> 0 | AF7: =IFERROR(IF(OR(Sheet1!$F$5="No",Sheet1!$F$5="NA",Sheet1!$F$5="Please Select"),0,IF(Sheet1!$F$3="1 year",INDEX($M$52:$X$58,MATCH(Sheet1!$F$5,Master!$M$52:$M$58,0),MATCH(Master!Y7,Master!$M$52:$X$52,0)),INDEX($M$60:$X$66,MATCH(Sheet1!$F$5,Master!$M$60:$M$66,0),MATCH(Master!Y7,Master!$M$60:$X$60,0)))),0) -> 0 | AG7: =IFERROR(IF(OR(Sheet1!$D$5="No",Sheet1!$D$5="NA",Sheet1!$D$5="Please Select"),0,IF(Sheet1!$F$3="1 year",Master!M105,IF(Sheet1!$F$3="2 years",Master!N105,0))),0) -> 0 | AH7: =IFERROR(IF(Sheet1!$B$5="Yes",AK26,0),0) -> 0 | AI7: =IFERROR(IF(OR(Sheet1!$H$5="No",Sheet1!$H$5="NA",Sheet1!$H$5="Please Select"),0,IF(Sheet1!$F$3="1 year",Master!Z91,Master!AA91)),0) -> 0 | AJ7: 13764 | AK7: =IF(Sheet1!$F$3="2 years",Master!AJ7*92.5%,Master!AJ7) -> 12731.7 | AL7: =IF(AND(COUNT($W$4:$W$8)>2,Sheet1!$F$3="2 years"),Master!AJ7*82.5%,IF(AND(COUNT($W$4:$W$8)>2,Sheet1!$F$3="1 year"),Master!AJ7*90%,IF(AND(COUNT($W$4:$W$8)<=2,Sheet1!$F$3="2 years"),Master!AJ7*92.5%,Master!AJ7))) -> 11355.3 | AN7: ="Total Premium for all members of the family is, Rs."&" "&AK9&" "&"(excluding GST) when each member is covered separately." -> Total Premium for all members of the family is, Rs. 183511 (excluding GST) when each member is covered separately. | AO7: ="Total Premium for all members of the family is, Rs."&" "&AL9&" "&"(excluding GST) when they are covered under a single policy" -> Total Premium for all members of the family is, Rs. 163672 (excluding GST) when they are covered under a single policy | AP7: ="Total Premium when policy is opted on floater basis is, Rs."&" "&AQ4&" "&"(excluding GST)" -> Total Premium when policy is opted on floater basis is, Rs. 110106 (excluding GST)
A8: 3000000 | B8: 7845 | C8: 11181 | D8: 14629 | E8: 18568 | F8: 23023 | G8: 29816 | H8: 39029 | I8: 51097 | J8: 74325 | K8: 98125 | L8: 135520 | N8: 46 | O8: 50 | P8: 46 years - 50 years | R8: =IFERROR(INDEX($M$36:$X$50,MATCH(AA7,$M$36:$M$50,0),MATCH(Y7,$M$36:$X$36,0)),0) -> 6882 | S8: 13764 | T8: 20646 | W8: 1 | X8: =IF(Sheet1!B7="","",IF(Sheet1!B7="3-11 Months",0.25,Sheet1!B7)) -> 0.25 | Y8: =IFERROR(LOOKUP(X8,Master!$N$4:$P$14),0) -> 91 days - 25 years | Z8: =IF(X8="","",Sheet1!$D$3) -> 2500000 | AA8: =IF(X8="","",Sheet1!$B$3&Sheet1!$D$3) -> Essential2500000 | AB8: =IFERROR(IF(Sheet1!$F$3=Master!$R$4,Master!R9,(IF(Sheet1!$F$3=Master!$S$4,Master!S9,(IF(Sheet1!$F$3=Master!$T$4,Master!T9,0))))),0) -> 13764 | AC8: =IFERROR(LOOKUP(X8,Master!$N$17:$P$28),0) -> 0 years - 17 years | AD8: =IFERROR(IF(OR(Sheet1!$B$3="Essential",Master!$V$4="Available floater combinations - 1A1C, 1A2C, 1A3C, 2A, 2A1C, 2A2C or 2A3C"),0,IF(Sheet1!$F$3="1 year",Master!M35,Master!N35)),0) -> 0 | AF8: =IFERROR(IF(OR(Sheet1!$F$5="No",Sheet1!$F$5="NA",Sheet1!$F$5="Please Select"),0,IF(Sheet1!$F$3="1 year",INDEX($M$52:$X$58,MATCH(Sheet1!$F$5,Master!$M$52:$M$58,0),MATCH(Master!Y8,Master!$M$52:$X$52,0)),INDEX($M$60:$X$66,MATCH(Sheet1!$F$5,Master!$M$60:$M$66,0),MATCH(Master!Y8,Master!$M$60:$X$60,0)))),0) -> 0 | AG8: =IFERROR(IF(OR(Sheet1!$D$5="No",Sheet1!$D$5="NA",Sheet1!$D$5="Please Select"),0,IF(Sheet1!$F$3="1 year",Master!M106,IF(Sheet1!$F$3="2 years",Master!N106,0))),0) -> 0 | AH8: =IFERROR(IF(Sheet1!$B$5="Yes",AK27,0),0) -> 0 | AI8: =IFERROR(IF(OR(Sheet1!$H$5="No",Sheet1!$H$5="NA",Sheet1!$H$5="Please Select"),0,IF(Sheet1!$F$3="1 year",Master!Z92,Master!AA92)),0) -> 0 | AJ8: 13764 | AK8: =IF(Sheet1!$F$3="2 years",Master!AJ8*92.5%,Master!AJ8) -> 12731.7 | AL8: =IF(AND(COUNT($W$4:$W$8)>2,Sheet1!$F$3="2 years"),Master!AJ8*82.5%,IF(AND(COUNT($W$4:$W$8)>2,Sheet1!$F$3="1 year"),Master!AJ8*90%,IF(AND(COUNT($W$4:$W$8)<=2,Sheet1!$F$3="2 years"),Master!AJ8*92.5%,Master!AJ8))) -> 11355.3 | AN8: ="Sum insured available for each individual is Rs."&" "&Sheet1!D3 -> Sum insured available for each individual is Rs. 2500000 | AO8: ="Sum insured available for each family member is Rs."&" "&Sheet1!D3 -> Sum insured available for each family member is Rs. 2500000 | AP8: =IF($V$4="Available floater combinations - 1A1C, 1A2C, 1A3C, 2A, 2A1C, 2A2C or 2A3C","Sum insured of Rs."&" "&0&" "&"is available for the entire family.","Sum insured of Rs."&" "&Sheet1!D3&" "&"is available for the entire family.") -> Sum insured of Rs. 2500000 is available for the entire family.
A9: 5000000 | B9: 8573 | C9: 12323 | D9: 16063 | E9: 21710 | F9: 28039 | G9: 38529 | H9: 52315 | I9: 71707 | J9: 110916 | K9: 154039 | L9: 222865 | N9: 51 | O9: 55 | P9: 51 years - 55 years | R9: =IFERROR(INDEX($M$36:$X$50,MATCH(AA8,$M$36:$M$50,0),MATCH(Y8,$M$36:$X$36,0)),0) -> 6882 | S9: 13764 | T9: 20646 | AA9: Total (Individual) | AB9: =SUM(AB4:AB8) -> 198390 | AF9: =SUM(AF4:AF8) -> 0 | AG9: =SUM(AG4:AG8) -> 0 | AH9: =SUM(AH4:AH8) -> 0 | AI9: =SUM(AI4:AI8) -> 0 | AJ9: 198390 | AK9: =ROUND(SUM(AK4:AK8),0) -> 183511 | AL9: =ROUND(SUM(AL4:AL8),0) -> 163672
N10: 56 | O10: 60 | P10: 56 years - 60 years | AA10: Total (Family floater) | AB10: =SUM(AB4:AB8) -> 198390 | AD10: =SUM(AD4:AD8) -> 0 | AE10: =-IF($V$4<>"Available floater combinations - 1A1C, 1A2C, 1A3C, 2A, 2A1C, 2A2C or 2A3C",IF(COUNT(W4:W8)>1,Master!$AG$24,0),0) -> -79356 | AF10: =SUM(AF4:AF8) -> 0 | AG10: =SUM(AG4:AG8) -> 0 | AH10: =IF(OR(Sheet1!$B$5="NA",Sheet1!$B$5="No"),0,AK21) -> 0 | AI10: =SUM(AI4:AI8) -> 0 | AJ10: =SUM(AB10:AI10) -> 119034
A11: Optimum | N11: 61 | O11: 65 | P11: 61 years - 65 years | Q11: Months | R11: 12 | S11: =R11*2 -> 24 | T11: =R11*3 -> 36 | AF11: Optional cover floater premium | AG11: =AF10+AG10+AH10+AI10 -> 0
A12: Age Band | B12: 91 days - 25 years | C12: 26 years - 35 years | D12: 36 years - 40 years | E12: 41 years - 45 years | F12: 46 years - 50 years | G12: 51 years - 55 years | H12: 56 years - 60 years | I12: 61 years - 65 years | J12: 66 years - 70 years | K12: 71 years - 75 years | L12: 76 years - 100 years | N12: 66 | O12: 70 | P12: 66 years - 70 years | Q12: Years | R12: 1 | S12: 2 | T12: 3
A13: 1000000 | B13: 8432 | C13: 11910 | D13: 14004 | E13: 17306 | F13: 20756 | G13: 26172 | H13: 32579 | I13: 42231 | J13: 58581 | K13: 74228 | L13: 100455 | N13: 71 | O13: 75 | P13: 71 years - 75 years | AA13: Family floater Disc | AJ13: Enhanced CB | AP13: =IF($AL$9=AQ3,$AR$22,IF($AL$9=AP4,AK9,IF($AL$9=AP5,AK9,IF($AL$9=AP6,AK9,IF($AL$9=AP7,$AR$22,IF($AL$9=AP8,AK10,IF($AL$9=AP9,AK10,IF($AL$9=AP10,AK10,0)))))))) -> 0 | AQ13: Very imp
A14: 1500000 | B14: 9297 | C14: 13297 | D14: 15806 | E14: 19669 | F14: 23768 | G14: 30062 | H14: 37854 | I14: 49628 | J14: 70125 | K14: 90836 | L14: 123881 | N14: 76 | O14: 100 | P14: 76 years - 100 years | R14: Reload Loading | S14: 200000 | T14: 300000 | U14: 400000 | V14: 500000 | W14: 750000 | X14: 1000000 | Y14: 1500000 | AA14: Per child | AB14: 0.1 | AJ14: Plans | AK14: Loading
A15: 2000000 | B15: 9824 | C15: 14172 | D15: 16965 | E15: 21189 | F15: 25705 | G15: 32629 | H15: 41335 | I15: 54510 | J15: 78038 | K15: 102152 | L15: 140122 | R15: 91 days - 25 years | S15: 0.12 | T15: 0.1 | U15: 0.075 | V15: 0.05 | W15: 0.02 | X15: 0.01 | Y15: 0.01 | AA15: For addition of 1 adult, the discount will be: | AJ15: Essential | AK15: 0.05 | AP15: Basic Premium | AR15: =IF(#REF!="Individual",Master!$AJ$9,Master!$AJ$10) -> 
A16: 2500000 | B16: 10380 | C16: 15089 | D16: 18173 | E16: 22773 | F16: 27718 | G16: 35293 | H16: 44942 | I16: 59717 | J16: 86426 | K16: 114102 | L16: 157243 | N16: Maternity Age band | R16: 26 years - 35 years | S16: 0.15 | T16: 0.12 | U16: 0.1 | V16: 0.05 | W16: 0.02 | X16: 0.01 | Y16: 0.01 | AA16: Age Bands | AB16: Discount | AJ16: Optimum | AK16: 0.05 | AP16: Add:Substandard Risk loading | AQ16: 0
A17: 3000000 | B17: 11319 | C17: 16161 | D17: 19552 | E17: 23737 | F17: 28365 | G17: 35990 | H17: 46756 | I17: 61221 | J17: 88594 | K17: 117112 | L17: 161315 | N17: 0.17 | O17: 17 | P17: 0 years - 17 years | R17: 36 years - 40 years | S17: 0.15 | T17: 0.12 | U17: 0.1 | V17: 0.05 | W17: 0.02 | X17: 0.01 | Y17: 0.01 | AA17: 91 days - 25 years | AB17: 0.25 | AJ17: OptimumPlus | AK17: 0.05 | AP17: Less:Family Discount | AR17: =IF(AND(#REF!="Individual",#REF!>2,COUNT(#REF!)=#REF!),(-(10%*Master!AR15)),0) -> 
A18: 5000000 | B18: 12127 | C18: 17435 | D18: 21162 | E18: 27242 | F18: 34018 | G18: 45765 | H18: 61775 | I18: 84683 | J18: 130388 | K18: 181237 | L18: 261494 | N18: 18 | O18: 25 | P18: 18 years - 25 years | R18: 41 years - 45 years | S18: 0.2 | T18: 0.15 | U18: 0.12 | V18: 0.075 | W18: 0.05 | X18: 0.02 | Y18: 0.02 | AA18: 26 years - 35 years | AB18: 0.25 | AF18: Adult | AH18: Child | AP18: Less:Employee Discount | AQ18: =#REF! ->  | AR18: =-AR15*AQ18 -> 
N19: 26 | O19: 35 | P19: 26 years - 35 years | R19: 46 years - 50 years | S19: 0.2 | T19: 0.15 | U19: 0.12 | V19: 0.1 | W19: 0.05 | X19: 0.02 | Y19: 0.02 | AA19: 36 years - 40 years | AB19: 0.25 | AF19: Highest Age | AG19: =MAX($X$4:$X$8) -> 65 | AH19: =COUNTIFS($X$6:$X$8,">=0.25",$X$6:$X$8,"<=25",$X$6:$X$8,"<=18") -> 1 | AJ19: For FF | AP19: Less:Direct Policy Purchase Discount | AQ19: 0.1 | AR19: =IF(#REF!="Yes",-(Master!$AQ$19*Master!$AR$15),0) -> 
A20: OptimumPlus | N20: 36 | O20: 40 | P20: 36 years - 40 years | R20: 51 years - 55 years | S20: 0.25 | T20: 0.2 | U20: 0.15 | V20: 0.1 | W20: 0.075 | X20: 0.05 | Y20: 0.05 | AA20: 41 years - 45 years | AB20: 0.25 | AF20: Sum Insured | AG20: =Z4 -> 2500000 | AH20: =IF($AH$19=COUNT(W6:W8),"Yes","No") -> No | AJ20: Loading | AK20: =IFERROR(VLOOKUP(Sheet1!$B$3,Master!$AJ$14:$AK$17,2,0),0) -> 0.05 | AP20: Less:Long term discount | AR20: =IF(#REF!="2 years",(-Master!$AB$31),IF(#REF!="3 years",(-Master!$AE$31),0)) -> 
A21: Age Band | B21: 91 days - 25 years | C21: 26 years - 35 years | D21: 36 years - 40 years | E21: 41 years - 45 years | F21: 46 years - 50 years | G21: 51 years - 55 years | H21: 56 years - 60 years | I21: 61 years - 65 years | J21: 66 years - 70 years | K21: 71 years - 75 years | L21: 76 years - 100 years | N21: 41 | O21: 45 | P21: 41 years - 45 years | R21: 56 years - 60 years | S21: 0.25 | T21: 0.2 | U21: 0.15 | V21: 0.1 | W21: 0.075 | X21: 0.05 | Y21: 0.05 | AA21: 46 years - 50 years | AB21: 0.3 | AF21: Age band of Highest | AG21: =LOOKUP($AG$19,$N$4:$P$14) -> 61 years - 65 years | AJ21: Loading Amt | AK21: =$AK$20*($AB$10+$AD$10+$AE$10+$AI$10) -> 5951.7 | AP21: Substandard Loading | AR21: =#REF! -> 
A22: 7500000 | B22: 14219 | C22: 20980 | D22: 24618 | E22: 30877 | F22: 38265 | G22: 50809 | H22: 68306 | I22: 93504 | J22: 143257 | K22: 198738 | L22: 285685 | N22: 46 | O22: 50 | P22: 46 years - 50 years | R22: 61 years - 65 years | S22: 0.25 | T22: 0.2 | U22: 0.15 | V22: 0.1 | W22: 0.075 | X22: 0.05 | Y22: 0.05 | AA22: 51 years - 55 years | AB22: 0.35 | AF22: Discount % | AG22: =IF(COUNT(W4:W5)>1,VLOOKUP($AG$21,$AA$16:$AB$27,2,0),0) -> 0.35 | AH22: =COUNT(W6:W8)*10% -> 0.3 | AJ22: For Ind | AP22: Net Premium wo installment | AR22: =SUM(AR15:AR21) -> 
A23: 10000000 | B23: 14637 | C23: 21674 | D23: 25538 | E23: 32051 | F23: 39761 | G23: 52792 | H23: 70995 | I23: 97286 | J23: 149386 | K23: 207503 | L23: 298265 | N23: 51 | O23: 55 | P23: 51 years - 55 years | R23: 66 years - 70 years | S23: 0.35 | T23: 0.3 | U23: 0.2 | V23: 0.15 | W23: 0.1 | X23: 0.075 | Y23: 0.075 | AA23: 56 years - 60 years | AB23: 0.35 | AF23: Total disc | AG23: =MIN(40%,SUM(AG22,AH22)) -> 0.4 | AJ23: 1 | AK23: =$AK$20*(AB4+AI4) -> 4951.3
N24: 56 | O24: 60 | P24: 56 years - 60 years | R24: 71 years - 75 years | S24: 0.4 | T24: 0.35 | U24: 0.25 | V24: 0.2 | W24: 0.15 | X24: 0.1 | Y24: 0.1 | AA24: 61 years - 65 years | AB24: 0.35 | AF24: Total disc amt | AG24: =$AG$23*($AB$10+$AD$10) -> 79356 | AJ24: 2 | AK24: =$AK$20*(AB5+AI5) -> 2903.6
N25: 61 | O25: 65 | P25: 61 years - 65 years | R25: 76 years - 100 years | S25: 0.5 | T25: 0.4 | U25: 0.3 | V25: 0.25 | W25: 0.2 | X25: 0.15 | Y25: 0.15 | AA25: 66 years - 70 years | AB25: 0.35 | AJ25: 3 | AK25: =$AK$20*(AB6+AI6) -> 688.2
N26: 66 | O26: 70 | P26: 66 years - 70 years | AA26: 71 years - 75 years | AB26: 0.35 | AJ26: 4 | AK26: =$AK$20*(AB7+AI7) -> 688.2
N27: 71 | O27: 75 | P27: 71 years - 75 years | R27: Reload calc (Family Floater) | T27: Reload calc (Individual) | AA27: 76 years - 100 years | AB27: 0.35 | AJ27: 5 | AK27: =$AK$20*(AB8+AI8) -> 688.2
N28: 76 | O28: 100 | P28: 76 years - 100 years | R28: Loading % | S28: =VLOOKUP($AG$21,R14:Y25,MATCH($AG$20,$R$14:$Y$14,0),0) ->  | T28: Sr. No. | U28: Loading % | V28: Loading amt
A29: Maternity prize loading | R29: Loading amt | S29: =$S$28*SUM(AB10:AG10) ->  | T29: =V4 -> 2A3C | U29: =IFERROR(VLOOKUP(Y4,$R$14:$Y$25,MATCH(Z4,$R$14:$Y$14,0),0),0) -> 0 | V29: =U29*SUM(AB4:AG4) -> 0 | AA29: Multi Policy Year Discount
A30: Plan/Age band | B30: 18 years - 25 years | C30: 26 years - 35 years | D30: 36 years - 40 years | E30: 41 years - 45 years | F30: 46 years - 50 years | G30: 51 years - 55 years | H30: 56 years - 60 years | I30: 61 years - 65 years | J30: 66 years - 70 years | K30: 71 years - 75 years | L30: 76 years - 100 years | M30: 1 Year | N30: 2 years | T30: =V5 -> 0 | U30: =IFERROR(VLOOKUP(Y5,$R$14:$Y$25,MATCH(Z5,$R$14:$Y$14,0),0),0) -> 0 | V30: =U30*SUM(AB5:AG5) -> 0 | AB30: 2 years | AE30: 3 years
A31: Optimum | B31: 3178 | C31: 6355 | D31: 5296 | E31: 3178 | F31: 1059 | G31: 0 | H31: 0 | I31: 0 | J31: 0 | K31: 0 | L31: 0 | M31: =IF(X4="",0,IF(AND($V$4<>"Available floater combinations - 1A1C, 1A2C, 1A3C, 2A, 2A1C, 2A2C or 2A3C",X4>17),INDEX($A$30:$L$32,MATCH(Sheet1!$B$3,$A$30:$A$32,0),MATCH(AC4,$A$30:$L$30,0)),0)) ->  | N31: =M31*2 ->  | T31: =V6 -> 0 | U31: 0 | V31: 0 | AA31: Disc amount | AB31: =7.5%*#REF! ->  | AE31: =10%*#REF! ->  | AJ31: Installment Calculation
A32: OptimumPlus | B32: 4609 | C32: 9217 | D32: 7681 | E32: 4609 | F32: 1536 | G32: 0 | H32: 0 | I32: 0 | J32: 0 | K32: 0 | L32: 0 | M32: =IF(X5="",0,IF(AND($V$4<>"Available floater combinations - 1A1C, 1A2C, 1A3C, 2A, 2A1C, 2A2C or 2A3C",X5>17),INDEX($A$30:$L$32,MATCH(Sheet1!$B$3,$A$30:$A$32,0),MATCH(AC5,$A$30:$L$30,0)),0)) ->  | N32: =M32*2 ->  | T32: =V7 -> 0 | U32: 0 | V32: 0 | AJ32: Installment Frequency | AK32: Loading on Annual Premium
M33: 0 | N33: =M33*2 -> 0 | T33: =V8 -> 0 | U33: 0 | V33: 0 | AG33: No | AJ33: No | AK33: 0
M34: 0 | N34: =M34*2 -> 0 | AG34: Half_Yearly | AJ34: Half_Yearly | AK34: 0.02
M35: =IF(X8="",0,IF(AND($V$4<>"Available floater combinations - 1A1C, 1A2C, 1A3C, 2A, 2A1C, 2A2C or 2A3C",X8>17),INDEX($A$30:$L$32,MATCH(Sheet1!$B$3,$A$30:$A$32,0),MATCH(AC8,$A$30:$L$30,0)),0)) -> 0 | N35: =M35*2 -> 0 | AG35: Quarterly | AJ35: Quarterly | AK35: 0.04
M36: Age band | N36: 91 days - 25 years | O36: 26 years - 35 years | P36: 36 years - 40 years | Q36: 41 years - 45 years | R36: 46 years - 50 years | S36: 51 years - 55 years | T36: 56 years - 60 years | U36: 61 years - 65 years | V36: 66 years - 70 years | W36: 71 years - 75 years | X36: 76 years - 100 years | AG36: Monthly | AJ36: Monthly | AK36: 0.05
M37: =$A$2&A4 -> Essential1000000 | N37: 5191 | O37: 7323 | P37: 9624 | Q37: 12724 | R37: 16218 | S37: 21090 | T37: 26362 | U37: 34286 | V37: 47876 | W37: 60409 | X37: 82086
M38: =$A$2&A5 -> Essential1500000 | N38: 5945 | O38: 8531 | P38: 11194 | Q38: 14784 | R38: 18844 | S38: 24481 | T38: 30961 | U38: 40735 | V38: 57939 | W38: 74888 | X38: 102508 | AJ38: Option Loading | AK38: =IFERROR(VLOOKUP(#REF!,Master!$AJ$32:$AK$36,2,0),0) -> 0
D39: =D32*2 -> 15362 | M39: Essential2000000 | N39: 6405 | O39: 9294 | P39: 12205 | Q39: 16110 | R39: 20533 | S39: 26719 | T39: 33996 | U39: 44991 | V39: 64837 | W39: 84754 | X39: 116667 | AK39: Loading amt | AL39: Premium with loading
M40: Essential2500000 | N40: 6882 | O40: 10085 | P40: 13250 | Q40: 17482 | R40: 22281 | S40: 29036 | T40: 37134 | U40: 49513 | V40: 72130 | W40: 95145 | X40: 131559 | AJ40: Individual | AK40: =$AK$38*$AR$22 ->  | AL40: =$AK$40+$AR$22 -> 
M41: Essential3000000 | N41: 7845 | O41: 11181 | P41: 14629 | Q41: 18568 | R41: 23023 | S41: 29816 | T41: 39029 | U41: 51097 | V41: 74325 | W41: 98125 | X41: 135520 | AJ41: FF | AK41: =$AK$38*$AR$22 ->  | AL41: =$AK$41+AR22 -> 
M42: Essential5000000 | N42: 8573 | O42: 12323 | P42: 16063 | Q42: 21710 | R42: 28039 | S42: 38529 | T42: 52315 | U42: 71707 | V42: 110916 | W42: 154039 | X42: 222865
M43: =$A$11&A13 -> Optimum1000000 | N43: 8432 | O43: 11910 | P43: 14004 | Q43: 17306 | R43: 20756 | S43: 26172 | T43: 32579 | U43: 42231 | V43: 58581 | W43: 74228 | X43: 100455
M44: Optimum1500000 | N44: 9297 | O44: 13297 | P44: 15806 | Q44: 19669 | R44: 23768 | S44: 30062 | T44: 37854 | U44: 49628 | V44: 70125 | W44: 90836 | X44: 123881
M45: Optimum2000000 | N45: 9824 | O45: 14172 | P45: 16965 | Q45: 21189 | R45: 25705 | S45: 32629 | T45: 41335 | U45: 54510 | V45: 78038 | W45: 102152 | X45: 140122
M46: Optimum2500000 | N46: 10380 | O46: 15089 | P46: 18173 | Q46: 22773 | R46: 27718 | S46: 35293 | T46: 44942 | U46: 59717 | V46: 86426 | W46: 114102 | X46: 157243
M47: Optimum3000000 | N47: 11319 | O47: 16161 | P47: 19552 | Q47: 23737 | R47: 28365 | S47: 35990 | T47: 46756 | U47: 61221 | V47: 88594 | W47: 117112 | X47: 161315
M48: Optimum5000000 | N48: 12127 | O48: 17435 | P48: 21162 | Q48: 27242 | R48: 34018 | S48: 45765 | T48: 61775 | U48: 84683 | V48: 130388 | W48: 181237 | X48: 261494
M49: =$A$20&A22 -> OptimumPlus7500000 | N49: 14219 | O49: 20980 | P49: 24618 | Q49: 30877 | R49: 38265 | S49: 50809 | T49: 68306 | U49: 93504 | V49: 143257 | W49: 198738 | X49: 285685
M50: =$A$20&A23 -> OptimumPlus10000000 | N50: 14637 | O50: 21674 | P50: 25538 | Q50: 32051 | R50: 39761 | S50: 52792 | T50: 70995 | U50: 97286 | V50: 149386 | W50: 207503 | X50: 298265
A52: Optional Covers | M52: Option: 1 year | N52: 91 days - 25 years | O52: 26 years - 35 years | P52: 36 years - 40 years | Q52: 41 years - 45 years | R52: 46 years - 50 years | S52: 51 years - 55 years | T52: 56 years - 60 years | U52: 61 years - 65 years | V52: 66 years - 70 years | W52: 71 years - 75 years | X52: 76 years - 100 years
A53: 01. CI & PA Cover | M53: CI: 2Lakhs & PA: 100% CSI | N53: 674 | O53: 827 | P53: 1056 | Q53: 1920 | R53: 3636 | S53: 5666 | T53: 9487 | U53: 14380 | V53: 22959 | W53: 34396 | X53: 34396
M54: CI: 2Lakhs & PA: 150% CSI | N54: 741 | O54: 910 | P54: 1162 | Q54: 2112 | R54: 4000 | S54: 6232 | T54: 10435 | U54: 15818 | V54: 25255 | W54: 37836 | X54: 37836
A55: 200000 with PA @100% | M55: CI: 5Lakhs & PA: 100% CSI | N55: 1684 | O55: 2068 | P55: 2641 | Q55: 4801 | R55: 9091 | S55: 14164 | T55: 23716 | U55: 35950 | V55: 57397 | W55: 85990 | X55: 85990
A56: Policy Tenure/Age Band | B56: 91 days - 25 years | C56: 26 years - 35 years | D56: 36 years - 40 years | E56: 41 years - 45 years | F56: 46 years - 50 years | G56: 51 years - 55 years | H56: 56 years - 60 years | I56: 61 years - 65 years | J56: 66 years - 70 years | K56: 71 years - 75 years | L56: 76 years - 100 years | M56: CI: 5Lakhs & PA: 150% CSI | N56: 1853 | O56: 2275 | P56: 2905 | Q56: 5281 | R56: 10000 | S56: 15581 | T56: 26088 | U56: 39545 | V56: 63137 | W56: 94590 | X56: 94590
A57: 1 year | B57: 674 | C57: 827 | D57: 1056 | E57: 1920 | F57: 3636 | G57: 5666 | H57: 9487 | I57: 14380 | J57: 22959 | K57: 34396 | L57: 34396 | M57: CI: 10Lakhs & PA: 100% CSI | N57: 3369 | O57: 4137 | P57: 5282 | Q57: 9601 | R57: 18182 | S57: 28328 | T57: 47433 | U57: 71900 | V57: 114794 | W57: 171981 | X57: 171981
A58: 2 years | B58: 1404 | C58: 1749 | D58: 2302 | E58: 4396 | F58: 8048 | G58: 12542 | H58: 21035 | I58: 31895 | J58: 50941 | K58: 76336 | L58: 76336 | M58: CI: 10Lakhs & PA: 150% CSI | N58: 3705 | O58: 4550 | P58: 5810 | Q58: 10561 | R58: 20000 | S58: 31161 | T58: 52176 | U58: 79090 | V58: 126274 | W58: 189179 | X58: 189179
A60: 200000 with PA @150% | M60: Option: 2 years | N60: 91 days - 25 years | O60: 26 years - 35 years | P60: 36 years - 40 years | Q60: 41 years - 45 years | R60: 46 years - 50 years | S60: 51 years - 55 years | T60: 56 years - 60 years | U60: 61 years - 65 years | V60: 66 years - 70 years | W60: 71 years - 75 years | X60: 76 years - 100 years
A61: Policy Tenure/Age Band | B61: 91 days - 25 years | C61: 26 years - 35 years | D61: 36 years - 40 years | E61: 41 years - 45 years | F61: 46 years - 50 years | G61: 51 years - 55 years | H61: 56 years - 60 years | I61: 61 years - 65 years | J61: 66 years - 70 years | K61: 71 years - 75 years | L61: 76 years - 100 years | M61: CI: 2Lakhs & PA: 100% CSI | N61: 1404 | O61: 1749 | P61: 2302 | Q61: 4396 | R61: 8048 | S61: 12542 | T61: 21035 | U61: 31895 | V61: 50941 | W61: 76336 | X61: 76336 | Y61: =INDEX(M52:X58,MATCH(#REF!,Master!M52:M58,0),MATCH(Master!Y4,Master!M52:X52,0)) -> 
A62: 1 year | B62: 741 | C62: 910 | D62: 1162 | E62: 2112 | F62: 4000 | G62: 6232 | H62: 10435 | I62: 15818 | J62: 25255 | K62: 37836 | L62: 37836 | M62: CI: 2Lakhs & PA: 150% CSI | N62: 1544 | O62: 1924 | P62: 2533 | Q62: 4835 | R62: 8853 | S62: 13796 | T62: 23139 | U62: 35084 | V62: 56035 | W62: 83969 | X62: 83969
A63: 2 years | B63: 1544 | C63: 1924 | D63: 2533 | E63: 4835 | F63: 8853 | G63: 13796 | H63: 23139 | I63: 35084 | J63: 56035 | K63: 83969 | L63: 83969 | M63: CI: 5Lakhs & PA: 100% CSI | N63: 3510 | O63: 4372 | P63: 5756 | Q63: 10989 | R63: 20120 | S63: 31354 | T63: 52589 | U63: 79737 | V63: 127353 | W63: 190839 | X63: 190839
M64: CI: 5Lakhs & PA: 150% CSI | N64: 3860 | O64: 4809 | P64: 6332 | Q64: 12088 | R64: 22133 | S64: 34489 | T64: 57848 | U64: 87711 | V64: 140088 | W64: 209923 | X64: 209923
A65: 500000 with PA @100% | M65: CI: 10Lakhs & PA: 100% CSI | N65: 7019 | O65: 8744 | P65: 11512 | Q65: 21978 | R65: 40241 | S65: 62708 | T65: 105177 | U65: 159475 | V65: 254705 | W65: 381679 | X65: 381679
A66: Policy Tenure/Age Band | B66: 91 days - 25 years | C66: 26 years - 35 years | D66: 36 years - 40 years | E66: 41 years - 45 years | F66: 46 years - 50 years | G66: 51 years - 55 years | H66: 56 years - 60 years | I66: 61 years - 65 years | J66: 66 years - 70 years | K66: 71 years - 75 years | L66: 76 years - 100 years | M66: CI: 10Lakhs & PA: 150% CSI | N66: 7721 | O66: 9618 | P66: 12664 | Q66: 24175 | R66: 44265 | S66: 68979 | T66: 115695 | U66: 175422 | V66: 280176 | W66: 419847 | X66: 419847
A67: 1 year | B67: 1684 | C67: 2068 | D67: 2641 | E67: 4801 | F67: 9091 | G67: 14164 | H67: 23716 | I67: 35950 | J67: 57397 | K67: 85990 | L67: 85990
A68: 2 years | B68: 3510 | C68: 4372 | D68: 5756 | E68: 10989 | F68: 20120 | G68: 31354 | H68: 52589 | I68: 79737 | J68: 127353 | K68: 190839 | L68: 190839
A70: 500000 with PA @150%
A71: Policy Tenure/Age Band | B71: 91 days - 25 years | C71: 26 years - 35 years | D71: 36 years - 40 years | E71: 41 years - 45 years | F71: 46 years - 50 years | G71: 51 years - 55 years | H71: 56 years - 60 years | I71: 61 years - 65 years | J71: 66 years - 70 years | K71: 71 years - 75 years | L71: 76 years - 100 years
A72: 1 year | B72: 1853 | C72: 2275 | D72: 2905 | E72: 5281 | F72: 10000 | G72: 15581 | H72: 26088 | I72: 39545 | J72: 63137 | K72: 94590 | L72: 94590
A73: 2 years | B73: 3860 | C73: 4809 | D73: 6332 | E73: 12088 | F73: 22133 | G73: 34489 | H73: 57848 | I73: 87711 | J73: 140088 | K73: 209923 | L73: 209923
A75: 1000000 with PA @100%
A76: Policy Tenure/Age Band | B76: 91 days - 25 years | C76: 26 years - 35 years | D76: 36 years - 40 years | E76: 41 years - 45 years | F76: 46 years - 50 years | G76: 51 years - 55 years | H76: 56 years - 60 years | I76: 61 years - 65 years | J76: 66 years - 70 years | K76: 71 years - 75 years | L76: 76 years - 100 years
A77: 1 year | B77: 3369 | C77: 4137 | D77: 5282 | E77: 9601 | F77: 18182 | G77: 28328 | H77: 47433 | I77: 71900 | J77: 114794 | K77: 171981 | L77: 171981
A78: 2 years | B78: 7019 | C78: 8744 | D78: 11512 | E78: 21978 | F78: 40241 | G78: 62708 | H78: 105177 | I78: 159475 | J78: 254705 | K78: 381679 | L78: 381679
A80: 1000000 with PA @150%
A81: Policy Tenure/Age Band | B81: 91 days - 25 years | C81: 26 years - 35 years | D81: 36 years - 40 years | E81: 41 years - 45 years | F81: 46 years - 50 years | G81: 51 years - 55 years | H81: 56 years - 60 years | I81: 61 years - 65 years | J81: 66 years - 70 years | K81: 71 years - 75 years | L81: 76 years - 100 years
A82: 1 year | B82: 3705 | C82: 4550 | D82: 5810 | E82: 10561 | F82: 20000 | G82: 31161 | H82: 52176 | I82: 79090 | J82: 126274 | K82: 189179 | L82: 189179
A83: 2 years | B83: 7721 | C83: 9618 | D83: 12664 | E83: 24175 | F83: 44265 | G83: 68979 | H83: 115695 | I83: 175422 | J83: 280176 | K83: 419847 | L83: 419847
A85: 02. Worlwide Cover
A86: Optimum | Z86: =AI3 -> Worldwide Coverage
A87: Sum Insured/Age Bracket | B87: 91 days - 25 years | C87: 26 years - 35 years | D87: 36 years - 40 years | E87: 41 years - 45 years | F87: 46 years - 50 years | G87: 51 years - 55 years | H87: 56 years - 60 years | I87: 61 years - 65 years | J87: 66 years - 70 years | K87: 71 years - 75 years | L87: 76 years - 100 years | N87: Age Band | O87: 91 days - 25 years | P87: 26 years - 35 years | Q87: 36 years - 40 years | R87: 41 years - 45 years | S87: 46 years - 50 years | T87: 51 years - 55 years | U87: 56 years - 60 years | V87: 61 years - 65 years | W87: 66 years - 70 years | X87: 71 years - 75 years | Y87: 76 years - 100 years | Z87: 1 year | AA87: 2 years
A88: 1000000 | B88: 320 | C88: 517 | D88: 680 | E88: 851 | F88: 1085 | G88: 1386 | H88: 4029 | I88: 5642 | J88: 8507 | K88: 11685 | L88: 16384 | N88: =$A$86&A88 -> Optimum1000000 | O88: 320 | P88: 517 | Q88: 680 | R88: 851 | S88: 1085 | T88: 1386 | U88: 4029 | V88: 5642 | W88: 8507 | X88: 11685 | Y88: 16384 | Z88: =IFERROR(INDEX($N$87:$Y$95,MATCH(AA4,$N$87:$N$95,0),MATCH(Y4,$N$87:$Y$87,0)),0) -> 0 | AA88: =Z88*$S$12 -> 0
A89: 1500000 | B89: 403 | C89: 650 | D89: 853 | E89: 1068 | F89: 1361 | G89: 1743 | H89: 5065 | I89: 7094 | J89: 10773 | K89: 14945 | L89: 20981 | N89: =$A$86&A89 -> Optimum1500000 | O89: 403 | P89: 650 | Q89: 853 | R89: 1068 | S89: 1361 | T89: 1743 | U89: 5065 | V89: 7094 | W89: 10773 | X89: 14945 | Y89: 20981 | Z89: =IFERROR(INDEX($N$87:$Y$95,MATCH(AA5,$N$87:$N$95,0),MATCH(Y5,$N$87:$Y$87,0)),0) -> 0 | AA89: =Z89*$S$12 -> 0
A90: 2000000 | B90: 454 | C90: 734 | D90: 964 | E90: 1208 | F90: 1539 | G90: 1978 | H90: 5750 | I90: 8052 | J90: 12326 | K90: 17165 | L90: 24169 | N90: Optimum2000000 | O90: 454 | P90: 734 | Q90: 964 | R90: 1208 | S90: 1539 | T90: 1978 | U90: 5750 | V90: 8052 | W90: 12326 | X90: 17165 | Y90: 24169 | Z90: =IFERROR(INDEX($N$87:$Y$95,MATCH(AA6,$N$87:$N$95,0),MATCH(Y6,$N$87:$Y$87,0)),0) -> 0 | AA90: =Z90*$S$12 -> 0
A91: 2500000 | B91: 721 | C91: 1169 | D91: 1537 | E91: 1924 | F91: 2452 | G91: 3163 | H91: 8578 | I91: 12014 | J91: 18505 | K91: 25848 | L91: 36475 | N91: Optimum2500000 | O91: 721 | P91: 1169 | Q91: 1537 | R91: 1924 | S91: 2452 | T91: 3163 | U91: 8578 | V91: 12014 | W91: 18505 | X91: 25848 | Y91: 36475 | Z91: =IFERROR(INDEX($N$87:$Y$95,MATCH(AA7,$N$87:$N$95,0),MATCH(Y7,$N$87:$Y$87,0)),0) -> 0 | AA91: =Z91*$S$12 -> 0
A92: 3000000 | B92: 767 | C92: 1246 | D92: 1639 | E92: 2052 | F92: 2615 | G92: 3378 | H92: 9162 | I92: 12831 | J92: 19830 | K92: 27743 | L92: 39194 | N92: Optimum3000000 | O92: 767 | P92: 1246 | Q92: 1639 | R92: 2052 | S92: 2615 | T92: 3378 | U92: 9162 | V92: 12831 | W92: 19830 | X92: 27743 | Y92: 39194 | Z92: =IFERROR(INDEX($N$87:$Y$95,MATCH(AA8,$N$87:$N$95,0),MATCH(Y8,$N$87:$Y$87,0)),0) -> 0 | AA92: =Z92*$S$12 -> 0
A93: 5000000 | B93: 854 | C93: 1390 | D93: 1830 | E93: 2438 | F93: 3295 | G93: 4511 | H93: 12864 | I93: 18895 | J93: 30891 | K93: 45202 | L93: 66480 | N93: Optimum5000000 | O93: 854 | P93: 1390 | Q93: 1830 | R93: 2438 | S93: 3295 | T93: 4511 | U93: 12864 | V93: 18895 | W93: 30891 | X93: 45202 | Y93: 66480
N94: =$A$95&A97 -> OptimumPlus7500000 | O94: 912 | P94: 1486 | Q94: 1957 | R94: 2597 | S94: 3498 | T94: 4780 | U94: 13594 | V94: 19917 | W94: 32547 | X94: 47570 | Y94: 69880 | Z94: 12 | AA94: =Z94*2 -> 24
A95: OptimumPlus | N95: =$A$95&A98 -> OptimumPlus10000000 | O95: 970 | P95: 1582 | Q95: 2084 | R95: 2757 | S95: 3702 | T95: 5049 | U95: 14323 | V95: 20939 | W95: 34203 | X95: 49939 | Y95: 73280 | Z95: 1 | AA95: 2
A96: Sum Insured/Age Bracket | B96: 91 days - 25 years | C96: 26 years - 35 years | D96: 36 years - 40 years | E96: 41 years - 45 years | F96: 46 years - 50 years | G96: 51 years - 55 years | H96: 56 years - 60 years | I96: 61 years - 65 years | J96: 66 years - 70 years | K96: 71 years - 75 years | L96: 76 years - 100 years
A97: 7500000 | B97: 912 | C97: 1486 | D97: 1957 | E97: 2597 | F97: 3498 | G97: 4780 | H97: 13594 | I97: 19917 | J97: 32547 | K97: 47570 | L97: 69880
A98: 10000000 | B98: 970 | C98: 1582 | D98: 2084 | E98: 2757 | F98: 3702 | G98: 5049 | H98: 14323 | I98: 20939 | J98: 34203 | K98: 49939 | L98: 73280
A100: 03. OPD Cover - Individual | M100: =AG3 -> OPD Cover
A101: Sum Insured/Age Bracket | B101: 91 days - 25 years | C101: 26 years - 35 years | D101: 36 years - 40 years | E101: 41 years - 45 years | F101: 46 years - 50 years | G101: 51 years - 55 years | H101: 56 years - 60 years | I101: 61 years - 65 years | J101: 66 years - 70 years | K101: 71 years - 75 years | L101: 76 years - 100 years | M101: 1 year | N101: 2 years
A102: 10000 | B102: 5263 | C102: 5263 | D102: 5263 | E102: 5263 | F102: 6140 | G102: 7018 | H102: 8772 | I102: 8772 | J102: 8772 | K102: 8772 | L102: 8772 | M102: =IFERROR(INDEX($A$101:$L$105,MATCH(Sheet1!$D$5,Master!$A$101:$A$105,0),MATCH(Master!Y4,Master!$A$101:$L$101,0)),0) -> 0 | N102: =M102*$S$12 -> 0
A103: 15000 | B103: 6579 | C103: 6579 | D103: 6579 | E103: 6579 | F103: 7895 | G103: 9211 | H103: 13158 | I103: 13158 | J103: 13158 | K103: 13158 | L103: 13158 | M103: =IFERROR(INDEX($A$101:$L$105,MATCH(Sheet1!$D$5,Master!$A$101:$A$105,0),MATCH(Master!Y5,Master!$A$101:$L$101,0)),0) -> 0 | N103: =M103*$S$12 -> 0
A104: 20000 | B104: 8772 | C104: 8772 | D104: 8772 | E104: 8772 | F104: 8772 | G104: 10526 | H104: 17544 | I104: 17544 | J104: 17544 | K104: 17544 | L104: 17544 | M104: =IFERROR(INDEX($A$101:$L$105,MATCH(Sheet1!$D$5,Master!$A$101:$A$105,0),MATCH(Master!Y6,Master!$A$101:$L$101,0)),0) -> 0 | N104: =M104*$S$12 -> 0
A105: 30000 | B105: 13158 | C105: 13158 | D105: 13158 | E105: 13158 | F105: 13158 | G105: 15789 | H105: 26316 | I105: 26316 | J105: 26316 | K105: 26316 | L105: 26316 | M105: =IFERROR(INDEX($A$101:$L$105,MATCH(Sheet1!$D$5,Master!$A$101:$A$105,0),MATCH(Master!Y7,Master!$A$101:$L$101,0)),0) -> 0 | N105: =M105*$S$12 -> 0
M106: =IFERROR(INDEX($A$101:$L$105,MATCH(Sheet1!$D$5,Master!$A$101:$A$105,0),MATCH(Master!Y8,Master!$A$101:$L$101,0)),0) -> 0 | N106: =M106*$S$12 -> 0
A107: 04. Cumulative Bonus Enhancer | M107: 12 | N107: =M107*2 -> 24
A108: Loading of 5% on overall premium for all ages excluding premium of CI & PA and OPD | M108: 1 | N108: 2
